[Event "7° Rencontres Internationales des Echecs Francophones"]
[Site "PARIS, France"]
[Date "2019.08.10"]
[Round "2.2"]
[White "Gurevich, Mikhail"]
[Black "Huynh, Laurent"]
[Result "1-0"]
[TimeControl "90'+30' + 30seconds/move"]
[WhiteElo "2559"]
[BlackElo "2135"]

1. c4 {[%clk 00:05:03]} {[%emt 00:25:07]} Nf6 {[%clk 00:05:04]} {[%emt
00:00:02]} 2. Nc3 {[%clk 00:05:06]} c5 {[%clk 00:04:53]} {[%emt 00:00:14]} 3.
g3 {[%clk 00:05:06]} {[%emt 00:00:03]} Nc6 {[%clk 00:04:55]} {[%emt 00:00:01]}
4. Bg2 {[%clk 00:05:07]} {[%emt 00:00:02]} e6 {[%clk 00:04:56]} {[%emt
00:00:02]} 5. Nf3 {[%clk 00:05:08]} {[%emt 00:00:02]} Be7 {[%clk 00:04:57]}
{[%emt 00:00:02]} 6. O-O {[%clk 00:05:08]} {[%emt 00:00:03]} O-O {[%clk
00:04:55]} {[%emt 00:00:06]} 7. d4 {[%clk 00:05:09]} {[%emt 00:00:02]} d6
{[%clk 00:04:35]} {[%emt 00:00:23]} 8. b3 {[%clk 00:04:38]} {[%emt 00:00:34]}
Bd7 {[%clk 00:04:30]} {[%emt 00:00:08]} 9. dxc5 {[%clk 00:04:14]} {[%emt
00:00:27]} dxc5 {[%clk 00:04:32]} {[%emt 00:00:02]} 10. Bf4 {[%clk 00:04:15]}
{[%emt 00:00:01]} Qa5 {[%clk 00:03:50]} {[%emt 00:00:44]} 11. Qc2 {[%clk
00:02:58]} {[%emt 00:01:20]} Nd4 {[%clk 00:01:32]} {[%emt 00:02:22]} 12. Qb2
{[%clk 00:02:58]} {[%emt 00:00:03]} Bc6 {[%clk 00:01:26]} {[%emt 00:00:09]} 13.
Rac1 {[%clk 00:02:26]} {[%emt 00:00:34]} Nxf3+ {[%clk 00:01:25]} {[%emt
00:00:05]} 14. Bxf3 {[%clk 00:02:26]} {[%emt 00:00:02]} Bxf3 15. exf3 {[%clk
00:02:28]} Rfd8 {[%clk 00:01:14]} {[%emt 00:00:16]} 16. Rfd1 {[%clk 00:02:29]}
{[%emt 00:00:02]} a6 {[%clk 00:01:14]} {[%emt 00:00:03]} 17. Qc2 {[%clk
00:02:18]} {[%emt 00:00:13]} Rxd1+ {[%clk 00:01:13]} {[%emt 00:00:05]} 18. Rxd1
{[%clk 00:02:20]} Rd8 {[%clk 00:01:15]} 19. Be5 {[%clk 00:02:17]} {[%emt
00:00:05]} Qb6 {[%clk 00:00:48]} {[%emt 00:00:32]} 20. Kg2 {[%clk 00:02:12]}
{[%emt 00:00:07]} Nd7 {[%clk 00:00:45]} {[%emt 00:00:06]} 21. Bf4 {[%clk
00:02:11]} {[%emt 00:00:03]} Nf6 {[%clk 00:00:46]} {[%emt 00:00:03]} 22. Rd3
{[%clk 00:02:08]} {[%emt 00:00:05]} Rxd3 {[%clk 00:00:43]} {[%emt 00:00:07]} 23.
Qxd3 {[%clk 00:02:10]} Qd8 {[%clk 00:00:45]} 24. Qxd8+ {[%clk 00:02:01]} {[%emt
00:00:13]} Bxd8 {[%clk 00:00:47]} {[%emt 00:00:01]} 25. Bd6 {[%clk 00:02:03]}
Ne8 {[%clk 00:00:49]} {[%emt 00:00:01]} 26. Bxc5 {[%clk 00:02:03]} {[%emt
00:00:03]} Nf6 {[%clk 00:00:43]} {[%emt 00:00:09]} 27. Na4 {[%clk 00:02:00]}
{[%emt 00:00:06]} Nd7 {[%clk 00:00:42]} {[%emt 00:00:05]} 28. Bd6 {[%clk
00:02:00]} {[%emt 00:00:02]} b6 {[%clk 00:00:38]} {[%emt 00:00:07]} 29. f4
{[%clk 00:01:58]} {[%emt 00:00:04]} f6 {[%clk 00:00:41]} 30. Kf3 {[%clk
00:01:59]} {[%emt 00:00:03]} Kf7 {[%clk 00:00:43]} 31. Ke4 {[%clk 00:02:00]}
{[%emt 00:00:02]} Ke8 {[%clk 00:00:33]} {[%emt 00:00:13]} 32. Nb2 {[%clk
00:01:52]} {[%emt 00:00:12]} Nc5+ {[%clk 00:00:32]} {[%emt 00:00:05]} 33. Bxc5
{[%clk 00:01:46]} {[%emt 00:00:09]} bxc5 {[%clk 00:00:34]} {[%emt 00:00:01]} 34.
Nd3 {[%clk 00:01:45]} {[%emt 00:00:03]} Be7 {[%clk 00:00:34]} {[%emt 00:00:03]}
35. f5 {[%clk 00:01:46]} {[%emt 00:00:01]} Kd7 {[%clk 00:00:33]} {[%emt
00:00:05]} 36. g4 {[%clk 00:01:45]} {[%emt 00:00:03]} Bd6 {[%clk 00:00:29]}
{[%emt 00:00:08]} 37. h3 {[%clk 00:01:46]} {[%emt 00:00:01]} g6 {[%clk
00:00:22]} {[%emt 00:00:10]} 38. f4 {[%clk 00:01:43]} {[%emt 00:00:06]} gxf5+
{[%clk 00:00:18]} {[%emt 00:00:08]} 39. gxf5 {[%clk 00:01:44]} {[%emt
00:00:02]} Bf8 {[%clk 00:00:18]} {[%emt 00:00:03]} 40. fxe6+ {[%clk 00:01:43]}
{[%emt 00:00:03]} Kxe6 {[%clk 00:00:20]} {[%emt 00:00:02]} 41. f5+ {[%clk
00:01:46]} Kd6 {[%clk 00:00:22]} 42. Nf2 {[%clk 00:01:42]} {[%emt 00:00:06]}
Bh6 {[%clk 00:00:24]} {[%emt 00:00:02]} 43. h4 {[%clk 00:01:41]} {[%emt
00:00:04]} Bc1 {[%clk 00:00:11]} {[%emt 00:00:15]} 44. Ng4 {[%clk 00:01:42]}
{[%emt 00:00:03]} Bb2 {[%clk 00:00:12]} {[%emt 00:00:02]} 45. h5 {[%clk
00:01:24]} {[%emt 00:00:21]} a5 {[%clk 00:00:15]} {[%emt 00:00:01]} 46. Nh2
{[%clk 00:01:21]} {[%emt 00:00:05]} Bc1 {[%clk 00:00:14]} {[%emt 00:00:04]} 47.
Nf3 {[%clk 00:01:23]} {[%emt 00:00:01]} Kc6 {[%clk 00:00:13]} {[%emt 00:00:04]}
48. Ne1 {[%clk 00:01:20]} {[%emt 00:00:05]} Bb2 {[%clk 00:00:10]} {[%emt
00:00:07]} 49. Nd3 {[%clk 00:01:20]} {[%emt 00:00:03]} Bd4 {[%clk 00:00:12]} 50.
a3 {[%clk 00:01:22]} {[%emt 00:00:02]} Bg1 {[%clk 00:00:13]} {[%emt 00:00:03]}
51. Nf4 {[%clk 00:01:15]} {[%emt 00:00:09]} Bd4 {[%clk 00:00:06]} {[%emt
00:00:10]} 52. Ne6 {[%clk 00:01:16]} {[%emt 00:00:01]} Bb2 {[%clk 00:00:09]}
{[%emt 00:00:02]} 53. Nf8 {[%clk 00:01:17]} {[%emt 00:00:01]} h6 {[%clk
00:00:11]} {[%emt 00:00:02]} 54. Ng6 {[%clk 00:01:10]} {[%emt 00:00:10]} Bxa3
{[%clk 00:00:09]} {[%emt 00:00:05]} 55. Ne7+ {[%clk 00:01:11]} {[%emt
00:00:01]} Kd6 {[%clk 00:00:11]} {[%emt 00:00:01]} 56. Ng8 {[%clk 00:01:13]}
Bc1 {[%clk 00:00:11]} {[%emt 00:00:03]} 57. Nxf6 {[%clk 00:01:14]} {[%emt
00:00:02]} Bg5 {[%clk 00:00:12]} {[%emt 00:00:03]} 58. Ng4 {[%clk 00:01:11]}
{[%emt 00:00:05]} Bd2 {[%clk 00:00:08]} {[%emt 00:00:08]} 59. Nf2 {[%clk
00:01:07]} {[%emt 00:00:05]} Bc3 {[%clk 00:00:07]} {[%emt 00:00:05]} 60. Nd3
{[%clk 00:01:08]} {[%emt 00:00:03]} Bf6 {[%clk 00:00:07]} {[%emt 00:00:02]} 61.
Kf4 {[%clk 00:01:08]} {[%emt 00:00:03]} Bg5+ {[%clk 00:00:09]} {[%emt
00:00:05]} 62. Ke4 {[%clk 00:01:09]} Bf6 {[%clk 00:00:12]} 63. Nf2 {[%clk
00:01:11]} Bd4 {[%clk 00:00:10]} {[%emt 00:00:04]} 64. Ng4 {[%clk 00:01:10]}
{[%emt 00:00:03]} Bg7 {[%clk 00:00:13]} 65. f6 {[%clk 00:01:12]} {[%emt
00:00:02]} Bf8 {[%clk 00:00:15]} 66. Kf5 {[%clk 00:01:15]} 1-0

[Event "7° Rencontres Internationales des Echecs Francophones"]
[Site "PARIS, France"]
[Date "2019.08.10"]
[Round "2.5"]
[White "Hemam, Moulaye Brahim"]
[Black "Hamdouchi, Hicham"]
[Result "0-1"]
[TimeControl "90'+30' + 30seconds/move"]
[WhiteElo "2079"]
[BlackElo "2514"]

1. e4 {[%clk 00:05:04]} {[%emt 00:16:24]} c5 {[%clk 00:05:05]} {[%emt
00:00:01]} 2. Nf3 {[%clk 00:05:05]} {[%emt 00:00:02]} Nc6 {[%clk 00:05:07]} 3.
d4 {[%clk 00:05:07]} cxd4 {[%clk 00:05:08]} {[%emt 00:00:02]} 4. Nxd4 {[%clk
00:05:09]} Qb6 {[%clk 00:05:10]} {[%emt 00:00:01]} 5. Nb3 {[%clk 00:05:09]}
{[%emt 00:00:03]} Nf6 {[%clk 00:05:12]} {[%emt 00:00:02]} 6. Nc3 {[%clk
00:05:10]} {[%emt 00:00:01]} e6 {[%clk 00:05:13]} {[%emt 00:00:01]} 7. Be3
{[%clk 00:05:05]} {[%emt 00:00:09]} Qc7 {[%clk 00:05:15]} {[%emt 00:00:02]} 8.
a3 {[%clk 00:04:57]} {[%emt 00:00:12]} a6 {[%clk 00:05:17]} 9. Be2 {[%clk
00:04:56]} {[%emt 00:00:04]} b5 {[%clk 00:05:17]} {[%emt 00:00:02]} 10. O-O
{[%clk 00:04:54]} {[%emt 00:00:05]} Bb7 {[%clk 00:05:19]} {[%emt 00:00:01]} 11.
Bf3 {[%clk 00:04:56]} Ne5 {[%clk 00:04:58]} {[%emt 00:00:24]} 12. Bf4 {[%clk
00:04:48]} {[%emt 00:00:11]} d6 {[%clk 00:04:38]} {[%emt 00:00:23]} 13. Re1
{[%clk 00:04:41]} {[%emt 00:00:11]} Be7 {[%clk 00:04:39]} {[%emt 00:00:01]} 14.
Bxe5 dxe5 {[%clk 00:04:40]} 15. Qe2 {[%clk 00:04:28]} O-O {[%clk 00:04:10]}
{[%emt 00:00:34]} 16. Red1 {[%clk 00:04:12]} {[%emt 00:00:19]} Rac8 {[%clk
00:04:11]} {[%emt 00:00:02]} 17. Rd3 {[%clk 00:03:36]} {[%emt 00:00:39]} Rfd8
{[%clk 00:04:00]} {[%emt 00:00:14]} 18. Rxd8+ {[%clk 00:03:23]} {[%emt
00:00:16]} Rxd8 {[%clk 00:04:02]} {[%emt 00:00:02]} 19. Rd1 {[%clk 00:03:19]}
{[%emt 00:00:07]} Rc8 {[%clk 00:03:48]} {[%emt 00:00:16]} 20. Rd3 {[%clk
00:03:00]} {[%emt 00:00:22]} g6 {[%clk 00:03:42]} {[%emt 00:00:09]} 21. g4
{[%clk 00:02:42]} {[%emt 00:00:21]} h6 {[%clk 00:03:36]} {[%emt 00:00:09]} 22.
Qd2 {[%clk 00:02:19]} {[%emt 00:00:26]} Kg7 {[%clk 00:03:37]} {[%emt 00:00:01]}
23. h4 {[%clk 00:02:20]} {[%emt 00:00:03]} Rd8 {[%clk 00:03:22]} {[%emt
00:00:18]} 24. Rxd8 {[%clk 00:01:52]} {[%emt 00:00:31]} Bxd8 {[%clk 00:03:24]}
{[%emt 00:00:02]} 25. Qd3 {[%clk 00:01:47]} {[%emt 00:00:08]} Be7 {[%clk
00:02:42]} {[%emt 00:00:44]} 26. Nd1 {[%clk 00:01:37]} {[%emt 00:00:13]} Nh7
{[%clk 00:02:39]} {[%emt 00:00:06]} 27. h5 {[%clk 00:01:33]} {[%emt 00:00:07]}
Ng5 {[%clk 00:02:13]} {[%emt 00:00:29]} 28. hxg6 {[%clk 00:01:24]} {[%emt
00:00:12]} fxg6 {[%clk 00:01:58]} {[%emt 00:00:18]} 29. Nd2 {[%clk 00:01:14]}
{[%emt 00:00:13]} Nh3+ {[%clk 00:01:38]} {[%emt 00:00:23]} 30. Kh2 {[%clk
00:01:08]} {[%emt 00:00:10]} Nf4 {[%clk 00:01:37]} {[%emt 00:00:03]} 31. Qc3
{[%clk 00:01:01]} {[%emt 00:00:10]} Qxc3 {[%clk 00:01:30]} {[%emt 00:00:10]} 32.
Nxc3 {[%clk 00:00:59]} {[%emt 00:00:05]} Bc5 {[%clk 00:01:32]} 33. Kg3 {[%clk
00:00:55]} {[%emt 00:00:07]} Bd4 {[%clk 00:01:34]} {[%emt 00:00:02]} 34. Nd1
{[%clk 00:00:54]} {[%emt 00:00:03]} Kf6 {[%clk 00:01:30]} {[%emt 00:00:08]} 35.
c4 {[%clk 00:00:56]} Bc6 {[%clk 00:01:08]} {[%emt 00:00:24]} 36. b4 {[%clk
00:00:56]} {[%emt 00:00:03]} Kg5 {[%clk 00:00:56]} {[%emt 00:00:15]} 37. Bh1
{[%clk 00:00:51]} {[%emt 00:00:08]} Ne2+ {[%clk 00:00:28]} {[%emt 00:00:31]} 38.
Kf3 {[%clk 00:00:49]} {[%emt 00:00:05]} Nc3 {[%clk 00:00:29]} {[%emt 00:00:02]}
39. cxb5 {[%clk 00:00:36]} {[%emt 00:00:17]} Bxb5 {[%clk 00:00:25]} {[%emt
00:00:07]} 40. Nxc3 {[%clk 00:00:33]} {[%emt 00:00:05]} Bxc3 {[%clk 00:00:27]}
{[%emt 00:00:01]} 41. Nb3 {[%clk 00:00:35]} Bb2 {[%clk 00:00:21]} {[%emt
00:00:08]} 42. Nc5 {[%clk 00:00:27]} {[%emt 00:00:12]} Bxa3 {[%clk 00:00:23]}
{[%emt 00:00:01]} 43. Nxe6+ {[%clk 00:00:29]} {[%emt 00:00:02]} Kf6 {[%clk
00:00:25]} 44. Nc7 {[%clk 00:00:24]} {[%emt 00:00:08]} Bc4 {[%clk 00:00:26]}
{[%emt 00:00:02]} 45. Nd5+ {[%clk 00:00:23]} {[%emt 00:00:04]} Bxd5 {[%clk
00:00:22]} {[%emt 00:00:08]} 46. exd5 {[%clk 00:00:25]} Bxb4 {[%clk 00:00:23]}
{[%emt 00:00:01]} 47. Ke4 {[%clk 00:00:17]} {[%emt 00:00:10]} Bd6 {[%clk
00:00:21]} {[%emt 00:00:05]} 48. Bf3 {[%clk 00:00:13]} {[%emt 00:00:07]} a5
{[%clk 00:00:22]} {[%emt 00:00:01]} 49. Bd1 {[%clk 00:00:15]} Kg5 {[%clk
00:00:24]} 50. f3 {[%clk 00:00:17]} {[%emt 00:00:01]} h5 {[%clk 00:00:26]}
{[%emt 00:00:02]} 51. gxh5 {[%clk 00:00:18]} {[%emt 00:00:02]} gxh5 {[%clk
00:00:28]} 52. Ke3 {[%clk 00:00:13]} {[%emt 00:00:08]} h4 {[%clk 00:00:29]}
{[%emt 00:00:02]} 53. Kf2 {[%clk 00:00:15]} Kf4 {[%clk 00:00:28]} {[%emt
00:00:04]} 54. Kg2 {[%clk 00:00:15]} {[%emt 00:00:03]} Ke3 {[%clk 00:00:28]}
{[%emt 00:00:03]} 55. Bc2 {[%clk 00:00:13]} {[%emt 00:00:05]} Kd4 {[%clk
00:00:28]} {[%emt 00:00:07]} 56. Kh3 {[%clk 00:00:08]} {[%emt 00:00:04]} Be7
{[%clk 00:00:25]} {[%emt 00:00:05]} 57. d6 {[%clk 00:00:10]} {[%emt 00:00:02]}
Bd8 {[%clk 00:00:27]} 58. d7 {[%clk 00:00:07]} {[%emt 00:00:05]} Kc3 {[%clk
00:00:29]} {[%emt 00:00:02]} 59. Ba4 {[%clk 00:00:07]} {[%emt 00:00:03]} Kb4
{[%clk 00:00:31]} {[%emt 00:00:02]} 60. Bc6 {[%clk 00:00:07]} {[%emt 00:00:02]}
a4 {[%clk 00:00:33]} 61. Kg4 {[%clk 00:00:06]} {[%emt 00:00:04]} a3 {[%clk
00:00:35]} {[%emt 00:00:02]} 62. Bd5 {[%clk 00:00:08]} Kc5 {[%clk 00:00:30]}
{[%emt 00:00:08]} 63. Ba2 {[%clk 00:00:06]} {[%emt 00:00:05]} Kd4 {[%clk
00:00:32]} {[%emt 00:00:01]} 64. f4 {[%clk 00:00:08]} {[%emt 00:00:01]} e4
{[%clk 00:00:33]} {[%emt 00:00:02]} 65. f5 {[%clk 00:00:10]} {[%emt 00:00:02]}
e3 {[%clk 00:00:34]} {[%emt 00:00:01]} 66. Kf3 {[%clk 00:00:12]} h3 {[%clk
00:00:36]} 67. Bb1 {[%clk 00:00:05]} {[%emt 00:00:11]} h2 {[%clk 00:00:36]}
{[%emt 00:00:03]} 0-1

[Event "7° Rencontres Internationales des Echecs Francophones"]
[Site "PARIS, France"]
[Date "2019.08.10"]
[Round "2.3"]
[White "Kern, Nicolas"]
[Black "David, Alberto"]
[Result "0-1"]
[TimeControl "90'+30' + 30seconds/move"]
[WhiteElo "2083"]
[BlackElo "2554"]

1. e4 {[%clk 00:05:05]} {[%emt 00:04:30]} c5 {[%clk 00:05:05]} 2. Nc3 {[%clk
00:05:06]} {[%emt 00:00:02]} a6 {[%clk 00:04:51]} {[%emt 00:00:18]} 3. g4
{[%clk 00:05:04]} {[%emt 00:00:04]} b5 {[%clk 00:04:49]} {[%emt 00:00:04]} 4.
Bg2 {[%clk 00:05:05]} {[%emt 00:00:03]} Bb7 {[%clk 00:04:51]} {[%emt 00:00:02]}
5. Nh3 {[%clk 00:05:05]} {[%emt 00:00:03]} e6 {[%clk 00:04:46]} {[%emt
00:00:08]} 6. O-O {[%clk 00:04:34]} {[%emt 00:00:33]} Ne7 {[%clk 00:03:50]}
{[%emt 00:00:59]} 7. f4 {[%clk 00:03:57]} {[%emt 00:00:40]} Ng6 {[%clk
00:03:52]} 8. f5 {[%clk 00:03:17]} {[%emt 00:00:43]} Nh4 {[%clk 00:03:53]} 9.
Bh1 {[%clk 00:03:05]} {[%emt 00:00:15]} b4 {[%clk 00:03:00]} {[%emt 00:00:57]}
10. Ne2 {[%clk 00:02:36]} {[%emt 00:00:31]} Qb6 {[%clk 00:01:56]} {[%emt
00:01:08]} 11. Qe1 {[%clk 00:02:14]} {[%emt 00:00:25]} c4+ {[%clk 00:01:55]}
{[%emt 00:00:04]} 12. Nf2 {[%clk 00:01:21]} {[%emt 00:00:56]} h5 {[%clk
00:01:57]} 13. d4 {[%clk 00:01:03]} {[%emt 00:00:20]} cxd3 {[%clk 00:01:58]}
{[%emt 00:00:02]} 14. cxd3 {[%clk 00:01:00]} {[%emt 00:00:07]} hxg4 {[%clk
00:02:00]} 15. Bg5 {[%clk 00:00:43]} {[%emt 00:00:20]} Bc5 {[%clk 00:01:25]}
{[%emt 00:00:38]} 16. d4 {[%clk 00:00:42]} {[%emt 00:00:05]} Bxd4 {[%clk
00:01:22]} {[%emt 00:00:05]} 17. Nxd4 {[%clk 00:00:44]} {[%emt 00:00:01]} Qxd4
{[%clk 00:01:24]} {[%emt 00:00:02]} 18. Rd1 {[%clk 00:00:45]} {[%emt 00:00:01]}
Qc5 {[%clk 00:00:29]} {[%emt 00:00:58]} 19. Rd3 {[%clk 00:00:34]} {[%emt
00:00:15]} Nf3+ {[%clk 00:00:25]} {[%emt 00:00:06]} 20. Bxf3 {[%clk 00:00:36]}
gxf3 {[%clk 00:00:27]} 21. Rxf3 {[%clk 00:00:25]} {[%emt 00:00:14]} Nc6 {[%clk
00:00:29]} 22. Qd2 {[%clk 00:00:18]} {[%emt 00:00:11]} Ne5 {[%clk 00:00:27]}
{[%emt 00:00:05]} 23. Rg3 {[%clk 00:00:14]} {[%emt 00:00:07]} Rc8 {[%clk
00:00:25]} {[%emt 00:00:05]} 24. Rc1 {[%clk 00:00:16]} {[%emt 00:00:02]} Qxc1+
{[%clk 00:00:18]} {[%emt 00:00:10]} 25. Qxc1 {[%clk 00:00:18]} Rxc1+ {[%clk
00:00:20]} {[%emt 00:00:02]} 26. Bxc1 {[%clk 00:00:20]} {[%emt 00:00:01]} g6
{[%clk 00:00:19]} {[%emt 00:00:04]} 27. fxe6 {[%clk 00:00:19]} {[%emt
00:00:03]} dxe6 {[%clk 00:00:21]} {[%emt 00:00:02]} 28. Bg5 {[%clk 00:00:12]}
{[%emt 00:00:10]} Nd7 {[%clk 00:00:12]} {[%emt 00:00:12]} 29. Rd3 {[%clk
00:00:10]} {[%emt 00:00:05]} f6 {[%clk 00:00:11]} {[%emt 00:00:04]} 30. Be3
{[%clk 00:00:11]} {[%emt 00:00:02]} Ke7 {[%clk 00:00:13]} 31. Rd4 {[%clk
00:00:06]} {[%emt 00:00:08]} a5 {[%clk 00:00:15]} {[%emt 00:00:01]} 32. Rc4
{[%clk 00:00:08]} Rc8 {[%clk 00:00:17]} 33. Rxc8 {[%clk 00:00:09]} {[%emt
00:00:02]} Bxc8 {[%clk 00:00:19]} {[%emt 00:00:01]} 34. Nd3 {[%clk 00:00:09]}
{[%emt 00:00:02]} Kd6 {[%clk 00:00:13]} {[%emt 00:00:08]} 35. Kf2 {[%clk
00:00:09]} {[%emt 00:00:03]} Bb7 {[%clk 00:00:15]} {[%emt 00:00:02]} 36. Nf4
{[%clk 00:00:08]} {[%emt 00:00:04]} Bxe4 {[%clk 00:00:17]} {[%emt 00:00:01]} 37.
h4 {[%clk 00:00:10]} e5 {[%clk 00:00:18]} {[%emt 00:00:02]} 38. Ne2 {[%clk
00:00:11]} {[%emt 00:00:02]} f5 {[%clk 00:00:19]} {[%emt 00:00:02]} 39. Bh6
{[%clk 00:00:09]} {[%emt 00:00:05]} f4 {[%clk 00:00:21]} 40. a3 {[%clk
00:00:09]} {[%emt 00:00:03]} Kd5 {[%clk 00:00:20]} {[%emt 00:00:04]} 41. axb4
{[%clk 00:00:08]} {[%emt 00:00:05]} axb4 {[%clk 00:00:22]} 42. Bg7 {[%clk
00:00:09]} {[%emt 00:00:02]} Bd3 {[%clk 00:00:21]} {[%emt 00:00:03]} 43. Nc1
{[%clk 00:00:11]} {[%emt 00:00:01]} Bc4 {[%clk 00:00:22]} {[%emt 00:00:02]} 44.
b3 {[%clk 00:00:10]} {[%emt 00:00:05]} Bb5 {[%clk 00:00:21]} {[%emt 00:00:01]}
45. Na2 {[%clk 00:00:12]} {[%emt 00:00:03]} Kc5 {[%clk 00:00:23]} 46. Kf3
{[%clk 00:00:09]} {[%emt 00:00:06]} Bc6+ {[%clk 00:00:22]} {[%emt 00:00:04]} 47.
Kg4 {[%clk 00:00:09]} {[%emt 00:00:03]} Bd5 {[%clk 00:00:24]} 48. Nc1 {[%clk
00:00:06]} {[%emt 00:00:05]} Kd4 {[%clk 00:00:25]} {[%emt 00:00:02]} 49. Kg5
{[%clk 00:00:08]} {[%emt 00:00:01]} f3 {[%clk 00:00:27]} {[%emt 00:00:01]} 50.
Kxg6 {[%clk 00:00:07]} {[%emt 00:00:05]} Ke4 {[%clk 00:00:22]} {[%emt
00:00:08]} 51. h5 {[%clk 00:00:06]} {[%emt 00:00:05]} f2 {[%clk 00:00:24]} 52.
Ne2 {[%clk 00:00:08]} Kf3 {[%clk 00:00:24]} {[%emt 00:00:04]} 53. h6 {[%clk
00:00:06]} {[%emt 00:00:05]} Kxe2 {[%clk 00:00:25]} {[%emt 00:00:02]} 54. h7
{[%clk 00:00:08]} {[%emt 00:00:01]} Be4+ {[%clk 00:00:27]} 0-1

[Event "7° Rencontres Internationales des Echecs Francophones"]
[Site "PARIS, France"]
[Date "2019.08.10"]
[Round "2.10"]
[White "Shchekachev, Andrei"]
[Black "Denjoy, Arnaud"]
[Result "0-1"]
[TimeControl "90'+30' + 30seconds/move"]
[WhiteElo "2446"]
[BlackElo "2036"]

1. Nf3 {[%clk 00:05:03]} Nf6 {[%clk 00:05:05]} {[%emt 00:00:02]} 2. c4 {[%clk
00:05:05]} e6 {[%clk 00:05:05]} {[%emt 00:00:03]} 3. Nc3 {[%clk 00:05:07]}
{[%emt 00:00:02]} Bb4 {[%clk 00:05:04]} {[%emt 00:00:04]} 4. g3 {[%clk
00:05:08]} {[%emt 00:00:01]} O-O {[%clk 00:05:05]} {[%emt 00:00:03]} 5. Bg2
{[%clk 00:05:11]} c5 {[%clk 00:04:53]} {[%emt 00:00:15]} 6. O-O {[%clk
00:05:07]} {[%emt 00:00:06]} Nc6 {[%clk 00:04:54]} {[%emt 00:00:02]} 7. d4
{[%clk 00:05:09]} Bxc3 {[%clk 00:04:42]} {[%emt 00:00:15]} 8. bxc3 {[%clk
00:05:11]} {[%emt 00:00:01]} d6 {[%clk 00:04:31]} {[%emt 00:00:14]} 9. Bf4
{[%clk 00:04:49]} {[%emt 00:00:25]} Re8 {[%clk 00:02:48]} {[%emt 00:01:46]} 10.
Rb1 {[%clk 00:04:32]} {[%emt 00:00:20]} Rb8 {[%clk 00:02:44]} {[%emt 00:00:07]}
11. dxc5 {[%clk 00:04:27]} {[%emt 00:00:07]} e5 {[%clk 00:02:46]} {[%emt
00:00:01]} 12. Be3 {[%clk 00:04:11]} {[%emt 00:00:18]} dxc5 {[%clk 00:02:45]}
{[%emt 00:00:04]} 13. Qxd8 {[%clk 00:03:56]} {[%emt 00:00:19]} Rxd8 {[%clk
00:02:46]} {[%emt 00:00:02]} 14. Bxc5 {[%clk 00:03:13]} {[%emt 00:00:45]} Be6
{[%clk 00:02:47]} {[%emt 00:00:02]} 15. Ng5 {[%clk 00:01:52]} {[%emt 00:01:24]}
Bxc4 {[%clk 00:02:47]} {[%emt 00:00:03]} 16. Rb2 {[%clk 00:01:52]} {[%emt
00:00:03]} h6 {[%clk 00:02:45]} {[%emt 00:00:06]} 17. Ne4 {[%clk 00:01:54]}
{[%emt 00:00:01]} Nxe4 {[%clk 00:02:39]} {[%emt 00:00:09]} 18. Bxe4 {[%clk
00:01:56]} Bd5 {[%clk 00:02:33]} {[%emt 00:00:10]} 19. Bf5 {[%clk 00:01:52]}
{[%emt 00:00:06]} b6 {[%clk 00:02:33]} {[%emt 00:00:03]} 20. Be3 {[%clk
00:01:52]} {[%emt 00:00:02]} Na5 {[%clk 00:02:32]} {[%emt 00:00:06]} 21. Bc1
{[%clk 00:01:34]} {[%emt 00:00:20]} Nc4 {[%clk 00:02:29]} {[%emt 00:00:06]} 22.
Rb4 {[%clk 00:01:32]} {[%emt 00:00:04]} Nd6 {[%clk 00:02:01]} {[%emt 00:00:32]}
23. Bd3 {[%clk 00:01:28]} {[%emt 00:00:07]} Rdc8 {[%clk 00:01:48]} {[%emt
00:00:16]} 24. Rd1 {[%clk 00:01:20]} {[%emt 00:00:11]} Bxa2 {[%clk 00:01:18]}
{[%emt 00:00:34]} 25. Ra4 {[%clk 00:01:11]} {[%emt 00:00:12]} Bb3 {[%clk
00:01:15]} {[%emt 00:00:04]} 26. Ra1 {[%clk 00:01:04]} {[%emt 00:00:11]} Bxd1
{[%emt 00:00:02]} 27. Ba3 Nc4 {[%clk 00:01:10]} {[%emt 00:00:10]} 28. Bc1
{[%clk 00:01:02]} {[%emt 00:00:08]} a5 {[%clk 00:00:50]} {[%emt 00:00:22]} 29.
f4 {[%clk 00:01:02]} {[%emt 00:00:03]} a4 {[%clk 00:00:47]} {[%emt 00:00:06]}
30. Bf5 {[%clk 00:01:01]} {[%emt 00:00:03]} Rd8 {[%clk 00:00:47]} {[%emt
00:00:03]} 31. fxe5 {[%clk 00:01:03]} {[%emt 00:00:02]} Nxe5 {[%clk 00:00:46]}
{[%emt 00:00:05]} 32. Bf4 {[%clk 00:01:04]} {[%emt 00:00:01]} f6 {[%clk
00:00:48]} 33. Kf2 {[%clk 00:01:02]} {[%emt 00:00:05]} Bb3 {[%clk 00:00:47]}
{[%emt 00:00:04]} 34. h4 {[%clk 00:01:00]} {[%emt 00:00:05]} Kf7 {[%clk
00:00:49]} 35. h5 {[%clk 00:01:02]} {[%emt 00:00:02]} b5 {[%clk 00:00:49]}
{[%emt 00:00:04]} 36. Be3 {[%clk 00:00:59]} {[%emt 00:00:06]} Be6 {[%clk
00:00:50]} {[%emt 00:00:01]} 0-1